bitfinex/quotes_BTCUSD_20240819
["timestamp","ask_amount","ask_price","bid_price","bid_amount"]
[1724068741913,0.0639,58552.0,58545.0,0.00551]
[1724068742118,0.0639,58552.0,58546.0,0.17104269]
[1724068742547,0.341558,58556.0,58547.0,0.0764]
[1724068742548,0.170776,58556.0,58547.0,0.0764]
[1724068742776,0.0626,58557.0,58548.0,0.17155454]
[1724068742991,0.170785,58553.0,58548.0,0.17155454]
[1724068743203,0.0626,58557.0,58549.0,0.0046102]
[1724068743204,3.01e-06,58552.0,58549.0,0.0046102]
[1724068743415,0.170797,58549.0,58546.0,0.17155454]
[1724068743641,0.341595,58549.0,58545.0,0.0008998]
[1724068743852,0.170803,58547.0,58545.0,0.0008998]
[1724068744266,0.341595,58549.0,58545.0,0.0008998]
[1724068744473,0.170805,58546.0,58545.0,0.0008998]
[1724068744680,0.170801,58548.0,58545.0,0.0008998]
[1724068744883,3.01e-06,58552.0,58545.0,0.0008998]
[1724068744884,0.512416,58546.0,58545.0,0.0008998]
[1724068745090,0.512416,58546.0,58545.0,0.00038795]
[1724068745091,0.575216,58546.0,58545.0,0.00038795]
[1724068745298,0.916827,58546.0,58545.0,0.00038795]
[1724068745531,0.575216,58546.0,58545.0,0.00038795]
[1724068746029,0.916827,58546.0,58545.0,0.00038795]
[1724068746997,0.0628,58546.0,58545.0,0.00038795]
[1724068747249,0.341588,58550.0,58545.0,0.00038795]
[1724068747250,0.170795,58550.0,58545.0,0.00038795]
[1724068747495,0.170803,58547.0,58545.0,0.00038795]
[1724068747728,0.34159,58550.0,58534.0,1.5]
[1724068747729,0.1708,58548.0,58534.0,1.49992152]
[1724068748023,0.0609,58551.0,58535.0,0.17155454]
[1724068748258,0.1708,58548.0,58535.0,0.17616474]
[1724068748501,3.01e-06,58552.0,58539.0,0.4393]
[1724068748754,3.01e-06,58552.0,58540.0,1.75207041]
[1724068748992,3.01e-06,58552.0,58541.0,0.1]
[1724068749241,3.01e-06,58552.0,58542.0,0.17497041]
[1724068749505,3.01e-06,58552.0,58544.0,0.0771]
[1724068749744,3.01e-06,58552.0,58545.0,0.17155454]
[1724068750181,0.17079201,58552.0,58546.0,0.00462952]
[1724068750391,0.17079201,58552.0,58547.0,1.67155454]
[1724068750802,0.17079201,58552.0,58548.0,0.00462952]
[1724068751016,0.17079201,58552.0,58548.0,0.17618406]
[1724068751017,3.01e-06,58552.0,58548.0,0.17618406]
[1724068751248,0.17079101,58552.0,58548.0,0.1757632]
[1724068751688,3.01e-06,58552.0,58549.0,0.17155454]
[1724068752097,3.01e-06,58552.0,58550.0,0.00460903]
[1724068752300,3.01e-06,58552.0,58551.0,0.17155454]
[1724068752709,3.01e-06,58552.0,58551.0,0.25246593]
[1724068753143,3.01e-06,58552.0,58551.0,0.35246593]
[1724068753354,3.01e-06,58552.0,58551.0,0.41656593]
[1724068754418,3.01e-06,58552.0,58551.0,0.41607319]
[1724068755069,3.01e-06,58552.0,58551.0,0.35197319]
[1724068755501,3.01e-06,58552.0,58551.0,0.27567319]
[1724068755502,0.00082101,58552.0,58551.0,0.27567319]
[1724068755709,0.17160901,58552.0,58551.0,0.00461139]
[1724068756127,0.00082101,58552.0,58547.0,0.082]
[1724068756361,0.00082101,58552.0,58544.0,0.0008998]
[1724068756362,0.34239801,58552.0,58544.0,0.0008998]
[1724068756572,0.00082101,58552.0,58545.0,0.17155454]
[1724068756803,0.00082101,58552.0,58544.0,0.0008998]
[1724068756804,0.00082101,58552.0,58544.0,0.17245434]
[1724068757017,0.170804,58547.0,58546.0,0.0045946]
[1724068757230,0.079,58551.0,58544.0,0.00044396]
[1724068757231,0.170808,58545.0,58544.0,0.00044396]
[1724068757436,0.512425,58545.0,58544.0,0.00044396]
[1724068757642,0.512425,58545.0,58544.0,0.00503856]
[1724068757643,0.575225,58545.0,58544.0,0.00503856]
[1724068757858,0.0628,58545.0,58544.0,0.00044396]
[1724068758111,0.233608,58545.0,58544.0,0.00044396]
[1724068758967,0.0628,58545.0,58544.0,0.00044396]
[1724068759181,0.916842,58545.0,58544.0,0.00044396]
[1724068759824,1.48443544,58545.0,58544.0,0.00044396]
[1724068760035,1.48443544,58545.0,58533.0,0.00896113]
[1724068760036,0.512521,58534.0,58533.0,0.00896113]
[1724068760896,0.170816,58543.0,58534.0,0.24675454]
[1724068761102,0.417631,58543.0,58533.0,0.00896113]
[1724068761310,0.417631,58543.0,58535.0,0.00468725]
[1724068761311,0.170831,58538.0,58535.0,0.00468725]
[1724068761534,0.341631,58543.0,58533.0,0.00896113]
[1724068761759,0.341631,58543.0,58536.0,0.00468725]
[1724068762013,0.170823,58541.0,58534.0,0.17155454]
[1724068762214,0.0628,58545.0,58535.0,0.1791]
[1724068762425,0.0628,58545.0,58535.0,0.35487249]
[1724068762426,0.341624,58544.0,58535.0,0.35487249]
[1724068762635,0.0628,58545.0,58535.0,0.35487249]
[1724068763080,0.170815,58543.0,58535.0,0.35487249]
[1724068763306,0.170821,58541.0,58535.0,0.35487249]
[1724068763517,0.341623,58544.0,58535.0,0.35487249]
[1724068763723,0.170818,58542.0,58535.0,0.35487249]
[1724068763926,0.170814,58543.0,58535.0,0.35487249]
[1724068764340,0.0628,58545.0,58535.0,0.10421795]
[1724068764600,0.0628,58545.0,58535.0,0.00469584]
[1724068764819,0.341655,58539.0,58534.0,1.5]
[1724068765029,0.341655,58539.0,58536.0,0.00468041]
[1724068765243,0.170836,58536.0,58533.0,0.00896113]
[1724068765455,0.341655,58539.0,58533.0,0.00812074]
[1724068765456,0.170838,58535.0,58533.0,0.00812074]
[1724068765886,0.341666,58537.0,58533.0,0.00812074]
[1724068765887,0.17084,58534.0,58533.0,0.00812074]
[1724068766951,0.170838,58535.0,58533.0,0.00812074]
[1724068767175,0.170827,58539.0,58533.0,0.00812074]
[1724068767384,0.0776,58543.0,58534.0,0.17155454]
[1724068767594,0.0776,58543.0,58533.0,0.00812074]
[1724068767595,0.341644,58541.0,58533.0,0.00812074]
[1724068767805,0.17084,58534.0,58533.0,0.00812074]
[1724068768024,0.512521,58534.0,58533.0,0.00812074]
[1724068768566,0.854202,58534.0,58533.0,0.00812074]
[1724068768629,0.919302,58534.0,58533.0,0.00812074]
[1724068769183,1.41206443,58534.0,58533.0,0.00812074]
[1724068769389,1.50537212,58534.0,58533.0,0.00812074]
[1724068769821,1.41206443,58534.0,58533.0,0.00812074]
[1724068770492,1.49126443,58534.0,58533.0,0.00812074]
[1724068771318,1.83694543,58534.0,58533.0,0.00812074]
[1724068771528,1.83294543,58534.0,58533.0,0.00812074]
[1724068771732,1.49026443,58534.0,58533.0,0.00812074]
[1724068771942,0.997502,58534.0,58533.0,0.00812074]
[1724068773327,0.655821,58534.0,58533.0,0.00812074]
[1724068773742,0.997502,58534.0,58533.0,0.00812074]
[1724068774810,0.655821,58534.0,58533.0,0.00812074]
[1724068775213,0.997502,58534.0,58533.0,0.00812074]
[1724068775682,1.49026443,58534.0,58533.0,0.00812074]
[1724068775891,1.63939087,58534.0,58533.0,0.00812074]
[1724068776109,1.64239087,58534.0,58533.0,0.00812074]
[1724068776395,0.80690243,58534.0,58533.0,0.00812074]
[1724068776604,0.997502,58534.0,58533.0,0.00812074]
[1724068779995,1.14858343,58534.0,58533.0,0.00812074]
[1724068780207,1.49026443,58534.0,58533.0,0.00812074]
[1724068780644,1.49126443,58534.0,58533.0,0.00312074]
[1724068781085,1.64479087,58534.0,58533.0,0.00312074]
[1724068781294,2.16707187,58534.0,58533.0,0.00312074]
[1724068781993,2.01836443,58534.0,58533.0,0.00312074]
[1724068783037,2.36004543,58534.0,58533.0,0.00312074]
[1724068783259,2.36004543,58534.0,58512.0,0.4]
[1724068783260,0.99271,58513.0,58512.0,0.4]
[1724068783489,1.14685716,58513.0,58512.0,0.4]
[1724068783707,1.48866116,58513.0,58512.0,0.4]
[1724068783970,0.91491,58513.0,58512.0,0.4]
[1724068785216,0.573106,58513.0,58512.0,0.4]
[1724068785618,0.91491,58513.0,58512.0,0.4]
[1724068786889,1.41086116,58513.0,58512.0,0.4]
[1724068787735,1.75566516,58513.0,58512.0,0.4]
[1724068787943,1.83276516,58513.0,58512.0,0.4]
[1724068788153,2.35516916,58513.0,58512.0,0.4]
[1724068788364,2.72146916,58513.0,58512.0,0.39992]
[1724068788576,2.9160237,58513.0,58512.0,0.39992]
[1724068788785,3.2578277,58513.0,58512.0,0.19303248]
[1724068789227,2.210141,58503.0,58492.0,0.008998]
[1724068789427,2.53657297,58503.0,58492.0,0.008998]
[1724068790119,2.55957297,58503.0,58492.0,0.008998]
[1724068790547,2.02315643,58503.0,58492.0,0.008998]
[1724068790984,1.67729443,58503.0,58492.0,0.008998]
[1724068791194,1.49569443,58503.0,58492.0,0.008998]
[1724068791453,1.49569443,58503.0,58495.0,0.0814]
[1724068792089,1.07273243,58503.0,58495.0,0.0814]
[1724068792295,0.170931,58503.0,58495.0,0.0814]
[1724068792507,0.512793,58503.0,58495.0,0.0814]
[1724068792916,0.854655,58503.0,58495.0,0.0814]
[1724068793324,0.974305,58503.0,58495.0,0.0814]
[1724068793538,0.854655,58503.0,58495.0,0.0814]
[1724068795191,0.512793,58503.0,58495.0,0.0814]
[1724068795817,0.341845,58506.0,58502.0,0.084698]
[1724068796035,0.341812,58512.0,58502.0,0.084698]
[1724068796242,0.170925,58505.0,58502.0,0.084698]
[1724068796482,0.15495047,58511.0,58502.0,0.084698]
[1724068796483,0.341846,58506.0,58502.0,0.084698]
[1724068796676,0.341816,58511.0,58502.0,0.084698]
[1724068796893,0.170926,58505.0,58502.0,0.084698]
[1724068797106,0.341834,58508.0,58502.0,0.084698]
[1724068797348,0.17092,58507.0,58502.0,0.084698]
[1724068797553,0.341817,58511.0,58502.0,0.084698]
[1724068797769,0.34181,58512.0,58502.0,0.084698]
[1724068797973,0.17091,58511.0,58502.0,0.084698]
[1724068798190,0.170896,58515.0,58504.0,0.0822]
[1724068798408,0.1709,58514.0,58504.0,0.0822]
[1724068798620,0.4692,58523.0,58506.0,0.0822]
[1724068798621,0.170891,58517.0,58506.0,0.0822]
[1724068798832,0.20216716,58522.0,58506.0,0.0822]
[1724068799119,0.170916,58508.0,58507.0,1.5]
[1724068799325,0.0825,58520.0,58506.0,0.0822]
[1724068799326,0.512758,58507.0,58506.0,0.0822]
[1724068800390,0.512758,58507.0,58502.0,0.084998]
[1724068800391,0.512793,58503.0,58502.0,0.084998]
[1724068800617,0.854655,58503.0,58502.0,0.084998]
[1724068800835,0.9401182,58503.0,58502.0,0.084998]
[1724068801069,0.512793,58503.0,58502.0,0.084998]
[1724068801286,0.854655,58503.0,58502.0,0.084998]
[1724068801710,0.341831,58509.0,58502.0,0.084998]
[1724068801933,0.341845,58507.0,58502.0,0.084998]
[1724068802147,0.170927,58505.0,58502.0,0.084998]
[1724068802370,0.0626,58519.0,58502.0,0.084998]
[1724068802587,0.170902,58513.0,58504.0,0.0822]
[1724068802811,0.17566293,58518.0,58504.0,0.0822]
[1724068802812,0.15443926,58518.0,58504.0,0.0822]
[1724068803072,0.341808,58513.0,58504.0,0.0822]
[1724068803277,0.170911,58510.0,58508.0,0.4]
[1724068803491,0.170899,58514.0,58509.0,0.0809]
[1724068803707,0.341788,58516.0,58509.0,0.0809]
[1724068803921,0.0341788,58516.0,58509.0,0.0809]
[1724068804140,0.17091,58510.0,58509.0,0.0809]
[1724068804835,0.854552,58510.0,58509.0,0.0809]
[1724068805310,0.51274,58509.0,58508.0,0.4]
[1724068805545,1.40866634,58509.0,58508.0,0.4]
[1724068805773,0.854567,58509.0,58508.0,0.4]
[1724068806205,0.341811,58512.0,58509.0,0.0821]
[1724068806427,0.170891,58517.0,58510.0,0.0622]
[1724068806647,0.34177,58519.0,58511.0,0.0821]
[1724068806859,0.170896,58515.0,58511.0,0.0821]
[1724068807075,0.341775,58518.0,58511.0,0.0821]
[1724068807294,0.066,58523.0,58511.0,0.0821]
[1724068807295,0.170905,58512.0,58511.0,0.0821]
[1724068807500,0.341723,58527.0,58511.0,0.0821]
[1724068807501,0.0642,58528.0,58511.0,0.0821]
[1724068807717,0.15312501,58527.0,58511.0,0.0821]
[1724068807933,0.170888,58518.0,58511.0,0.0821]
[1724068808150,0.170884,58519.0,58511.0,0.0821]
[1724068808355,0.341761,58521.0,58511.0,0.0821]
[1724068808356,0.170887,58518.0,58511.0,0.0821]
[1724068808574,0.341776,58518.0,58511.0,0.0821]
[1724068808790,0.341764,58520.0,58511.0,0.0821]
[1724068809012,0.170888,58518.0,58511.0,0.0821]
[1724068809228,0.17088,58521.0,58511.0,0.0821]
[1724068809704,0.170905,58512.0,58511.0,0.0821]
[1724068809936,0.341765,58520.0,58511.0,0.0821]
[1724068810173,0.170905,58512.0,58511.0,0.0821]
[1724068810396,0.512715,58512.0,58511.0,0.0821]
[1724068810614,0.170905,58512.0,58511.0,0.0821]
[1724068811256,1.196335,58512.0,58511.0,0.0821]
[1724068811479,0.854525,58512.0,58511.0,0.0821]
[1724068811688,0.23514403,58525.0,58511.0,0.0821]
[1724068811689,0.170897,58515.0,58511.0,0.0821]
[1724068811894,0.170905,58512.0,58511.0,0.0821]
[1724068812104,0.341752,58522.0,58511.0,0.0821]
[1724068812315,0.170905,58512.0,58511.0,0.0821]
[1724068812759,0.170903,58513.0,58511.0,0.0821]
[1724068812941,0.3663,58532.0,58511.0,0.0821]
[1724068812942,0.078419,58530.0,58511.0,0.0821]
[1724068813155,0.341755,58522.0,58511.0,0.0821]
[1724068813371,0.34177,58519.0,58511.0,0.25365454]
[1724068813575,0.170905,58512.0,58511.0,0.0821]
[1724068813840,0.512715,58512.0,58511.0,0.0821]
[1724068814533,0.51274,58509.0,58508.0,0.4009009]
[1724068814760,0.854567,58509.0,58508.0,0.4009009]
[1724068815613,1.196394,58509.0,58508.0,0.4009009]
[1724068815848,0.854567,58509.0,58508.0,0.4009009]
[1724068816066,1.3160334,58509.0,58508.0,0.4009009]
[1724068816281,0.854567,58509.0,58508.0,0.4009009]
[1724068817547,0.854567,58509.0,58508.0,0.40562542]
[1724068818186,1.35112537,58509.0,58508.0,0.40562542]
[1724068818422,1.41752537,58509.0,58508.0,0.40562542]
[1724068818645,1.75935237,58509.0,58508.0,0.40562542]
[1724068818852,1.93090691,58509.0,58508.0,0.40562542]
[1724068819059,2.01270691,58509.0,58508.0,0.4009009]
[1724068819494,1.84115237,58509.0,58508.0,0.4009009]
[1724068819942,1.84115237,58509.0,58508.0,0.40562542]
[1724068820787,1.84115237,58509.0,58508.0,0.4009009]
[1724068821134,1.84315237,58509.0,58508.0,0.4009009]
[1724068821336,1.84115237,58509.0,58508.0,0.4009009]
[1724068821541,2.01270691,58509.0,58508.0,0.4009009]
[1724068821741,1.84115237,58509.0,58508.0,0.4009009]
[1724068821997,1.84515237,58509.0,58508.0,0.4009009]
[1724068822149,2.18697937,58509.0,58508.0,0.4009009]
[1724068822381,2.41734037,58509.0,58508.0,0.4009009]
[1724068822586,2.51734037,58509.0,58508.0,0.4009009]
[1724068822781,2.51734037,58509.0,58508.0,0.3325349]
[1724068822782,2.81656865,58509.0,58508.0,0.3325349]
[1724068823033,2.81656865,58509.0,58508.0,0.2299859]
[1724068823034,3.03072191,58509.0,58508.0,0.2299859]
[1724068823237,3.00396091,58509.0,58508.0,0.1633859]
[1724068823443,3.00396091,58509.0,58508.0,0.01064248]
[1724068823444,3.33163465,58509.0,58508.0,0.01064248]
[1724068823661,1.784475,58507.0,58506.0,4.8e-07]
[1724068823880,2.5081586,58507.0,58506.0,4.8e-07]
[1724068824046,2.21616634,58507.0,58506.0,4.8e-07]
[1724068824244,2.13955243,58507.0,58506.0,4.8e-07]
[1724068824607,2.36218314,58507.0,58506.0,4.8e-07]
[1724068824831,2.65294597,58507.0,58506.0,4.8e-07]
[1724068825070,2.72955988,58507.0,58506.0,4.8e-07]
[1724068825261,3.12370803,58507.0,58506.0,4.8e-07]
[1724068825656,3.12370803,58507.0,58492.0,0.008998]
[1724068825657,2.205941,58503.0,58492.0,0.008998]
[1724068825857,3.42582453,58503.0,58492.0,0.008998]
[1724068826157,3.40026987,58503.0,58492.0,0.008998]
[1724068826372,3.34920149,58503.0,58492.0,0.008998]
[1724068826576,3.40027802,58503.0,58492.0,0.008998]
[1724068826744,3.53713224,58503.0,58492.0,0.008998]
[1724068827150,2.45787749,58503.0,58492.0,0.008998]
[1724068827391,2.45987749,58503.0,58492.0,0.008998]
[1724068827618,2.46187749,58503.0,58492.0,0.008998]
[1724068827789,2.48487749,58503.0,58492.0,0.008998]
[1724068827993,2.82673949,58503.0,58492.0,0.008998]
[1724068828231,3.17889403,58503.0,58492.0,0.008998]
[1724068828391,3.22997056,58503.0,58502.0,1e-06]
[1724068828630,3.57183256,58503.0,58502.0,1e-06]
[1724068828878,3.22997056,58503.0,58502.0,1e-06]
[1724068829076,3.22955916,58503.0,58502.0,1e-06]
[1724068829280,3.22820458,58503.0,58502.0,1e-06]
[1724068830871,3.17712805,58503.0,58502.0,1e-06]
[1724068831076,3.51899005,58503.0,58502.0,1e-06]
[1724068831703,3.80003848,58503.0,58502.0,1e-06]
[1724068831909,0.77639,58492.0,58491.0,1e-06]
[1724068832109,2.1485554,58492.0,58491.0,1e-06]
[1724068832289,2.8324094,58492.0,58491.0,1e-06]
[1724068832481,2.3058824,58492.0,58491.0,1e-06]
[1724068832810,2.47743694,58492.0,58491.0,1e-06]
[1724068833363,2.11313694,58492.0,58491.0,1e-06]
[1724068833582,2.11513694,58492.0,58491.0,1e-06]
[1724068833785,2.48143694,58492.0,58491.0,1e-06]
[1724068834051,2.82336394,58492.0,58491.0,1e-06]
[1724068834213,3.02696394,58492.0,58491.0,1e-06]
[1724068835657,2.3058824,58492.0,58491.0,1e-06]
[1724068835858,2.2269824,58492.0,58491.0,1e-06]
[1724068836310,1.8756824,58492.0,58491.0,1e-06]
[1724068836865,1.3531554,58492.0,58491.0,1e-06]
[1724068837069,0.170963,58492.0,58491.0,0.079901]
[1724068837481,0.51289,58492.0,58491.0,0.08461697]
[1724068837689,0.170963,58492.0,58491.0,0.08461697]
[1724068837900,0.341916,58494.0,58491.0,0.079901]
[1724068838113,0.170963,58492.0,58491.0,0.079901]
[1724068838322,0.51289,58492.0,58491.0,0.079901]
[1724068839748,0.854817,58492.0,58491.0,0.079901]
[1724068841984,0.170961,58493.0,58491.0,0.079901]
[1724068842231,0.4692,58509.0,58496.0,0.001]
[1724068842508,0.4692,58509.0,58501.0,0.1415]
[1724068842760,0.170926,58505.0,58502.0,0.0794]
[1724068843010,0.170931,58503.0,58502.0,0.08411597]
[1724068843351,0.854655,58503.0,58502.0,0.08411597]
[1724068843566,1.35212483,58503.0,58502.0,0.08411597]
[1724068843856,1.35212483,58503.0,58502.0,0.0794]
[1724068844140,0.854655,58503.0,58502.0,0.0794]
[1724068844923,0.512793,58503.0,58502.0,0.0794]
[1724068845159,0.170931,58503.0,58502.0,0.0794]
[1724068845402,0.170928,58504.0,58503.0,0.0813]
[1724068845627,0.512784,58504.0,58503.0,0.0813]
[1724068845860,0.341845,58506.0,58503.0,0.0813]
[1724068845861,0.170927,58505.0,58503.0,0.0813]
[1724068846107,0.170924,58506.0,58503.0,0.0823]
[1724068846350,0.811033,58509.0,58506.0,0.0801]
[1724068846351,0.4692,58509.0,58506.0,0.0801]
[1724068846586,0.170919,58507.0,58506.0,0.0801]
[1724068846821,0.4692,58509.0,58506.0,0.0801]
[1724068847056,0.341834,58508.0,58505.0,0.001]
[1724068847290,0.4692,58509.0,58505.0,0.001]
[1724068847543,0.4692,58509.0,58508.0,0.0649]
[1724068847776,0.170913,58509.0,58508.0,0.0649]
[1724068848261,0.17173,58511.0,58508.0,0.0649]
[1724068848511,0.17173,58511.0,58510.0,0.001]
[1724068848512,0.00082,58511.0,58510.0,0.001]
[1724068849189,0.998,58500.0,58494.0,1.50441857]
[1724068849401,0.998,58500.0,58499.0,0.3668]
[1724068849611,0.8481,58500.0,58499.0,0.66135454]
[1724068849823,0.7149,58500.0,58499.0,0.66135454]
[1724068850071,0.6899,58500.0,58499.0,2.24224128]
[1724068850278,0.6899,58500.0,58499.0,2.23865454]
[1724068850486,0.6899,58500.0,58499.0,2.24324128]
[1724068850919,0.6899,58500.0,58499.0,2.24524128]
[1724068852194,0.45171859,58500.0,58499.0,2.24524128]
[1724068852413,0.00082,58511.0,58510.0,0.001]
[1724068852631,0.00082,58511.0,58510.0,0.57700179]
[1724068852848,0.00082,58511.0,58510.0,0.66590917]
[1724068853472,0.00082,58511.0,58510.0,0.68590917]
[1724068854540,0.00082,58511.0,58510.0,0.68690917]
[1724068855414,0.00082,58511.0,58510.0,0.68790917]
[1724068856869,0.00082,58511.0,58510.0,0.68990917]
[1724068857076,0.00082,58511.0,58510.0,0.69995494]
[1724068858545,0.000819,58534.0,58524.0,0.001]
[1724068858798,0.000819,58534.0,58529.0,0.3668]
[1724068859013,0.000819,58534.0,58529.0,2.13835454]
[1724068859447,0.000819,58534.0,58529.0,2.1668477]
[1724068859660,0.000819,58534.0,58529.0,2.1861477]
[1724068860095,0.000819,58534.0,58529.0,2.1851477]
[1724068860572,0.000819,58534.0,58529.0,0.2760477]
[1724068862855,0.000819,58534.0,58529.0,0.29876424]
[1724068863074,0.0007787,58530.0,58529.0,1.79876424]
[1724068863503,0.0007787,58530.0,58529.0,1.82176424]
[1724068864785,0.0007787,58530.0,58529.0,1.8183477]
[1724068865685,0.0007787,58530.0,58529.0,0.2760477]
[1724068865909,0.0007787,58530.0,58529.0,0.10449316]
[1724068865910,0.0017787,58530.0,58529.0,0.10449316]
[1724068866133,0.5961357,58530.0,58529.0,0.00449316]
[1724068866348,0.5961357,58530.0,58512.0,0.51177509]
[1724068866349,0.001,58525.0,58512.0,0.51177509]
[1724068866578,0.061,58524.0,58517.0,0.17581641]
[1724068867033,0.064,58529.0,58517.0,0.17923399]
[1724068867241,0.063,58529.0,58517.0,0.17923399]
[1724068867453,0.063,58529.0,58517.0,0.17923361]
[1724068867661,0.0007787,58530.0,58518.0,0.1193]
[1724068867885,0.0007787,58530.0,58519.0,0.19455454]
[1724068868099,0.0007787,58530.0,58520.0,0.1]
[1724068868310,0.0007787,58530.0,58523.0,0.53785454]
[1724068868543,0.0007787,58530.0,58524.0,0.1423]
[1724068868755,0.0007787,58530.0,58525.0,0.17155454]
[1724068868962,0.0007787,58530.0,58526.0,0.0034167]
[1724068869179,0.0007787,58530.0,58527.0,0.17155454]
[1724068869394,0.0007787,58530.0,58528.0,0.10341668]
[1724068869612,0.0007787,58530.0,58529.0,0.17155454]
[1724068869823,0.0007787,58530.0,58529.0,0.27155454]
[1724068870033,0.0007787,58530.0,58529.0,0.29797105]
[1724068870243,0.0007787,58530.0,58529.0,0.31727105]
[1724068870473,0.000819,58534.0,58529.0,1.81727105]
[1724068870891,0.000819,58534.0,58530.0,0.29455454]
[1724068871747,0.000819,58534.0,58531.0,0.00341623]
[1724068871960,0.000819,58534.0,58532.0,0.19455454]
[1724068872170,0.000819,58534.0,58533.0,0.1]
[1724068872394,0.000819,58534.0,58533.0,0.29455454]
[1724068873276,0.000819,58534.0,58533.0,0.27155454]
[1724068873892,0.062619,58534.0,58533.0,0.27155454]
[1724068874322,0.063619,58534.0,58533.0,0.27155454]
[1724068874532,0.062619,58534.0,58533.0,0.1]
[1724068874737,0.000819,58534.0,58533.0,0.27155454]
[1724068874939,0.000819,58534.0,58533.0,0.27577582]
[1724068875361,0.000819,58534.0,58533.0,0.29507582]
[1724068875614,0.000819,58534.0,58533.0,0.29877582]
[1724068876455,0.000819,58534.0,58533.0,0.30219199]
[1724068876673,0.000819,58534.0,58533.0,0.29877582]
[1724068876889,0.000819,58534.0,58533.0,0.30219195]
[1724068877313,0.000819,58534.0,58533.0,0.32249194]
[1724068877522,0.4692,58550.0,58533.0,0.32249194]
[1724068877523,0.4692,58550.0,58542.0,0.0193]
[1724068877728,0.00082101,58552.0,58542.0,0.0193]
[1724068877729,0.00082101,58552.0,58543.0,1.67155454]
[1724068877944,0.00082101,58552.0,58544.0,0.10422128]
[1724068878178,0.00082101,58552.0,58544.0,0.27919167]
[1724068878401,0.00082101,58552.0,58544.0,0.27577582]
[1724068879241,0.00082101,58552.0,58544.0,0.27919167]
[1724068879499,0.00082101,58552.0,58544.0,0.27577582]
[1724068879708,0.00082101,58552.0,58544.0,0.27919166]
[1724068880144,0.00082101,58552.0,58544.0,0.30219166]
[1724068880823,0.00082101,58552.0,58544.0,1.80219166]
[1724068882756,0.00082101,58552.0,58544.0,1.80419166]
[1724068882966,0.00082101,58552.0,58544.0,1.82349166]
[1724068883629,0.34145,58574.0,58544.0,1.82349166]
[1724068883630,0.001,58587.0,58547.0,0.002]
[1724068883885,0.51177509,58588.0,58586.0,0.3663]
[1724068884123,0.51177509,58588.0,58587.0,0.17155454]
[1724068884336,0.0082,58589.0,58587.0,0.17155454]
[1724068884337,0.0082,58589.0,58587.0,1.77677582]
[1724068884545,0.0082,58589.0,58588.0,0.46716742]
[1724068884753,0.0082,58589.0,58588.0,0.50548712]
[1724068884964,0.0082,58589.0,58588.0,0.62948712]
[1724068885176,0.0082,58589.0,58588.0,2.15078712]
[1724068885390,0.082,58606.0,58590.0,0.001]
[1724068885594,0.082,58606.0,58600.0,0.2922]
[1724068885798,0.082,58606.0,58601.0,0.27155454]
[1724068886258,0.082,58606.0,58602.0,0.00400025]
[1724068886462,0.082,58606.0,58603.0,0.17155454]
[1724068886668,0.082,58606.0,58604.0,0.1]
[1724068886871,0.082,58606.0,58605.0,0.17155454]
[1724068887077,0.082,58606.0,58605.0,0.17555479]
[1724068888130,0.082,58606.0,58605.0,0.00400025]
[1724068888131,0.083,58606.0,58605.0,0.00400025]
[1724068888338,0.082,58606.0,58605.0,0.00400025]
[1724068888579,0.082,58606.0,58598.0,0.00341265]
[1724068888785,0.082,58606.0,58605.0,0.17155454]
[1724068889198,0.341162,58624.0,58605.0,0.17155454]
[1724068889199,0.0771,58612.0,58605.0,0.17155454]
[1724068889409,0.0771,58612.0,58606.0,0.17155454]
[1724068889847,0.0761,58612.0,58606.0,0.17155454]
[1724068890060,0.0761,58612.0,58607.0,0.00400025]
[1724068890271,0.001,58617.0,58611.0,0.3652]
[1724068890480,0.001,58617.0,58612.0,0.2749664]
[1724068890907,0.001,58617.0,58613.0,1.50394377]
[1724068891129,0.001,58617.0,58614.0,0.17155454]
[1724068891334,0.0817,58616.0,58614.0,0.17155454]
[1724068891546,0.0817,58616.0,58615.0,0.00388035]
[1724068891762,0.1458,58616.0,58605.0,0.4745]
[1724068891973,0.001,58615.0,58606.0,0.78674195]
[1724068892190,0.1458,58616.0,58606.0,0.27496686]
[1724068892399,0.001,58612.0,58606.0,0.27155454]
[1724068892607,0.315402,58616.0,58606.0,0.27155454]
[1724068892819,0.001,58613.0,58606.0,0.27155454]
[1724068893028,0.001,58612.0,58606.0,0.27155454]
[1724068893888,0.001,58609.0,58606.0,0.27155454]
[1724068894097,0.001,58608.0,58606.0,0.27155454]
[1724068894312,0.0775,58611.0,58606.0,0.27155454]
[1724068894747,0.0775,58611.0,58607.0,0.00374601]
[1724068894961,0.0641,58616.0,58608.0,0.17155454]
[1724068894962,0.1426,58616.0,58608.0,0.17155454]
[1724068895170,0.001,58615.0,58608.0,0.17496667]
[1724068895375,0.001,58615.0,58609.0,0.00374601]
[1724068895580,0.001,58615.0,58610.0,0.17155454]
[1724068895792,0.1426,58616.0,58610.0,0.17155454]
[1724068896063,0.001,58615.0,58610.0,0.17155454]
[1724068896268,0.001,58615.0,58611.0,0.00374601]
[1724068896470,0.001,58615.0,58612.0,0.17155454]
[1724068897107,0.001,58615.0,58613.0,0.00374601]
[1724068897361,0.001,58615.0,58614.0,0.17155454]
[1724068897765,0.001,58615.0,58606.0,0.1]
[1724068897975,0.001,58615.0,58607.0,0.17155454]
[1724068898186,0.001,58612.0,58607.0,0.17155454]
[1724068898394,0.1426,58616.0,58608.0,0.1]
[1724068898648,0.1426,58616.0,58609.0,0.17155454]
[1724068898866,0.001,58611.0,58609.0,0.17155454]
[1724068899068,0.001,58610.0,58609.0,0.17155454]
[1724068899290,0.001,58611.0,58609.0,0.17155454]
[1724068899501,0.001,58612.0,58609.0,0.17155454]
[1724068899921,0.0798,58610.0,58609.0,0.17155454]
[1724068900138,0.0808,58610.0,58609.0,0.17155454]
[1724068900349,0.0798,58610.0,58609.0,0.17155454]
[1724068900555,1e-08,58613.0,58609.0,0.17155454]
[1724068900762,0.17061101,58613.0,58601.0,0.1]
[1724068900967,1e-08,58613.0,58605.0,0.17155454]
[1724068901215,0.17062,58610.0,58605.0,0.17155454]
[1724068901634,0.170626,58608.0,58601.0,0.1]